[Event "Titled Tuesday Blitz April 19 Late 2022"]
[White "Buchenau, Frank"]
[Black "Kaasen, Tor Fredrik"]
[WhiteFideId "4604350"]
[BlackFideId "1516647"]
[WhiteElo "2193"]
[BlackElo "2335"]
[Result "0-1"]
[Round "09"]
[TimeControl "180+1"]
[Date "2022.04.19"]
[WhiteClock "0:00:01"]
[BlackClock "0:00:02"]

1. e4 {[%clk 0:02:54]}  e5 {[%clk 0:03:00]} 2. Bc4 {[%clk 0:02:53]}  Nc6 {[%clk 0:02:55]} 3. Nf3 {[%clk 0:02:53]}  Nf6 {[%clk 0:02:54]} 4. d3 {[%clk 0:02:53]}  Bc5 {[%clk 0:02:53]} 5. O-O {[%clk 0:02:53]}  O-O {[%clk 0:02:52]} 6. c3 {[%clk 0:02:53]}  d6 {[%clk 0:02:52]} 7. Nbd2 {[%clk 0:02:53]}  a5 {[%clk 0:02:50]} 8. h3 {[%clk 0:02:47]}  h6 {[%clk 0:02:50]} 9. Re1 {[%clk 0:02:47]}  Be6 {[%clk 0:02:50]} 10. Bb5 {[%clk 0:02:47]}  Nd7 {[%clk 0:02:51]} 11. Nf1 {[%clk 0:02:43]}  f5 {[%clk 0:02:51]} 12. exf5 {[%clk 0:02:41]}  Bxf5 {[%clk 0:02:52]} 13. Ng3 {[%clk 0:02:38]}  Bg6 {[%clk 0:02:53]} 14. d4 {[%clk 0:02:33]}  exd4 {[%clk 0:02:53]} 15. cxd4 {[%clk 0:02:31]}  Bb6 {[%clk 0:02:54]} 16. Be3 {[%clk 0:02:12]}  Nb4 {[%clk 0:02:51]} 17. Ba4 {[%clk 0:01:57]}  Nd5 {[%clk 0:02:42]} 18. Bb3 {[%clk 0:01:51]}  Nf6 {[%clk 0:02:42]} 19. Nh4 {[%clk 0:01:45]}  Bf7 {[%clk 0:02:39]} 20. Nhf5 {[%clk 0:01:40]}  Kh8 {[%clk 0:02:12]} 21. Rc1 {[%clk 0:01:31]}  Re8 {[%clk 0:02:04]} 22. Qd2 {[%clk 0:01:21]}  Ng8 {[%clk 0:01:55]} 23. Nxg7 {[%clk 0:01:05]}  Kxg7 {[%clk 0:01:46]} 24. Nf5+ {[%clk 0:01:02]}  Kh7 {[%clk 0:01:44]} 25. Bxh6 {[%clk 0:01:00]}  Qf6 {[%clk 0:01:30]} 26. Bg5 {[%clk 0:00:54]}  Qg6 {[%clk 0:00:52]} 27. Bc2 {[%clk 0:00:51]}  Rxe1+ {[%clk 0:00:52]} 28. Rxe1 {[%clk 0:00:50]}  Nb4 {[%clk 0:00:51]} 29. Bb1 {[%clk 0:00:46]}  Bxa2 {[%clk 0:00:35]} 30. Nh4 {[%clk 0:00:40]}  Bxb1 {[%clk 0:00:31]} 31. Nxg6 {[%clk 0:00:39]}  Bxg6 {[%clk 0:00:32]} 32. Qf4 {[%clk 0:00:35]}  Kg7 {[%clk 0:00:25]} 33. Qg4 {[%clk 0:00:33]}  Nd5 {[%clk 0:00:20]} 34. Qd7+ {[%clk 0:00:30]}  Bf7 {[%clk 0:00:17]} 35. Re4 {[%clk 0:00:27]}  Ndf6 {[%clk 0:00:16]} 36. Bxf6+ {[%clk 0:00:15]}  Nxf6 {[%clk 0:00:17]} 37. Rg4+ {[%clk 0:00:15]}  Nxg4 {[%clk 0:00:17]} 38. Qxg4+ {[%clk 0:00:15]}  Bg6 {[%clk 0:00:17]} 39. h4 {[%clk 0:00:15]}  Rh8 {[%clk 0:00:16]} 40. g3 {[%clk 0:00:15]}  Rh5 {[%clk 0:00:14]} 41. Qd7+ {[%clk 0:00:14]}  Kh6 {[%clk 0:00:13]} 42. Qd8 {[%clk 0:00:13]}  Kg7 {[%clk 0:00:13]} 43. Qe7+ {[%clk 0:00:13]}  Bf7 {[%clk 0:00:12]} 44. Qe4 {[%clk 0:00:11]}  Rd5 {[%clk 0:00:09]} 45. Qg4+ {[%clk 0:00:11]}  Kf8 {[%clk 0:00:09]} 46. Qf4 {[%clk 0:00:10]}  Rxd4 {[%clk 0:00:08]} 47. Qh6+ {[%clk 0:00:10]}  Ke7 {[%clk 0:00:09]} 48. Qg5+ {[%clk 0:00:10]}  Ke6 {[%clk 0:00:08]} 49. h5 {[%clk 0:00:08]}  Rd5 {[%clk 0:00:09]} 50. Qg4+ {[%clk 0:00:08]}  Rf5 {[%clk 0:00:08]} 51. h6 {[%clk 0:00:08]}  Bxf2+ {[%clk 0:00:07]} 52. Kg2 {[%clk 0:00:08]}  Bh5 {[%clk 0:00:06]} 53. Qg8+ {[%clk 0:00:06]}  Bf7 {[%clk 0:00:04]} 54. Qc8+ {[%clk 0:00:05]}  Ke5 {[%clk 0:00:04]} 55. h7 {[%clk 0:00:06]}  Bd5+ {[%clk 0:00:03]} 56. Kh3 {[%clk 0:00:05]}  Be6 {[%clk 0:00:01]} 57. Qh8+ {[%clk 0:00:04]}  Kd5 {[%clk 0:00:02]} 58. g4 {[%clk 0:00:04]}  Rf3+ {[%clk 0:00:02]} 59. Kg2 {[%clk 0:00:04]}  Rf4 {[%clk 0:00:03]} 60. Qg7 {[%clk 0:00:03]}  Bd4 {[%clk 0:00:02]} 61. Qxd4+ {[%clk 0:00:02]}  Rxd4 {[%clk 0:00:02]} 62. h8=Q {[%clk 0:00:03]}  Rxg4+ {[%clk 0:00:03]} 63. Kf3 {[%clk 0:00:03]}  Rg5 {[%clk 0:00:03]} 64. Qc3 {[%clk 0:00:03]}  Re5 {[%clk 0:00:04]} 65. Qd3+ {[%clk 0:00:02]}  Kc6 {[%clk 0:00:04]} 66. Qc3+ {[%clk 0:00:03]}  Kd7 {[%clk 0:00:04]} 67. Qd3 {[%clk 0:00:03]}  Bd5+ {[%clk 0:00:04]} 68. Kf2 {[%clk 0:00:03]}  Kc6 {[%clk 0:00:04]} 69. Qc3+ {[%clk 0:00:03]}  Kd7 {[%clk 0:00:05]} 70. Qxa5 {[%clk 0:00:02]}  Rg5 {[%clk 0:00:04]} 71. Qa4+ {[%clk 0:00:02]}  Bc6 {[%clk 0:00:04]} 72. Qf4 {[%clk 0:00:02]}  Rg7 {[%clk 0:00:03]} 73. Ke3 {[%clk 0:00:02]}  Re7+ {[%clk 0:00:03]} 74. Kd2 {[%clk 0:00:02]}  Bd5 {[%clk 0:00:04]} 75. Qg4+ {[%clk 0:00:02]}  Be6 {[%clk 0:00:05]} 76. Qb4 {[%clk 0:00:03]}  c6 {[%clk 0:00:05]} 77. Qxb7+ {[%clk 0:00:02]}  Ke8 {[%clk 0:00:05]} 78. Qxc6+ {[%clk 0:00:03]}  Rd7 {[%clk 0:00:06]} 79. Qc8+ {[%clk 0:00:03]}  Ke7 {[%clk 0:00:07]} 80. Qc6 {[%clk 0:00:03]}  d5 {[%clk 0:00:07]} 81. b4 {[%clk 0:00:03]}  Rd6 {[%clk 0:00:07]} 82. Qc5 {[%clk 0:00:04]}  Bd7 {[%clk 0:00:06]} 83. b5 {[%clk 0:00:05]}  Bxb5 {[%clk 0:00:05]} 84. Qxb5 {[%clk 0:00:05]}  Ke6 {[%clk 0:00:05]} 85. Qe8+ {[%clk 0:00:04]}  Kf5 {[%clk 0:00:05]} 86. Kd3 {[%clk 0:00:05]}  d4 {[%clk 0:00:05]} 87. Qe7 {[%clk 0:00:05]}  Rg6 {[%clk 0:00:03]} 88. Qe4+ {[%clk 0:00:04]}  Kf6 {[%clk 0:00:04]} 89. Kxd4 {[%clk 0:00:04]}  Rg5 {[%clk 0:00:04]} 90. Qf4+ {[%clk 0:00:04]}  Kg6 {[%clk 0:00:04]} 91. Ke4 {[%clk 0:00:03]}  Rh5 {[%clk 0:00:04]} 92. Qg4+ {[%clk 0:00:03]}  Kh6 {[%clk 0:00:04]} 93. Kf4 {[%clk 0:00:02]}  Rc5 {[%clk 0:00:03]} 94. Qg8 {[%clk 0:00:02]}  Rc7 {[%clk 0:00:01]} 95. Qf8+ {[%clk 0:00:01]}  Rg7 {[%clk 0:00:01]} 96. Kf5 {[%clk 0:00:01]}  Kh7 {[%clk 0:00:01]} 97. Kf6 {[%clk 0:00:01]}  Rg6+ {[%clk 0:00:02]} 98. Kf7 {[%clk 0:00:01]}  Rf6+ {[%clk 0:00:02]} 0-1


[Site "https://www.chess.com"]

[Event "Titled Tuesday Blitz April 19 Late 2022"]
[White "Carrasco Miranda, Andres"]
[Black "Burke, Paul"]
[WhiteFideId "3405990"]
[BlackFideId "2605767"]
[WhiteElo "2177"]
[BlackElo "1880"]
[Result "1-0"]
[Round "09"]
[TimeControl "180+1"]
[Date "2022.04.19"]
[WhiteClock "0:00:30"]
[BlackClock "0:00:30"]

1. d4 {[%clk 0:02:14]}  Nf6 {[%clk 0:02:57]} 2. c4 {[%clk 0:02:11]}  c5 {[%clk 0:02:57]} 3. Nf3 {[%clk 0:02:11]}  e6 {[%clk 0:02:56]} 4. g3 {[%clk 0:02:10]}  d5 {[%clk 0:02:55]} 5. Bg2 {[%clk 0:02:10]}  Nc6 {[%clk 0:02:55]} 6. O-O {[%clk 0:02:10]}  a6 {[%clk 0:02:55]} 7. cxd5 {[%clk 0:02:10]}  exd5 {[%clk 0:02:54]} 8. Nc3 {[%clk 0:02:09]}  h6 {[%clk 0:02:54]} 9. a3 {[%clk 0:02:06]}  Be6 {[%clk 0:02:54]} 10. Ne5 {[%clk 0:02:05]}  Rc8 {[%clk 0:02:43]} 11. Nxc6 {[%clk 0:02:04]}  bxc6 {[%clk 0:02:41]} 12. Be3 {[%clk 0:01:56]}  c4 {[%clk 0:02:36]} 13. Bf4 {[%clk 0:01:49]}  Bd6 {[%clk 0:02:31]} 14. Bxd6 {[%clk 0:01:49]}  Qxd6 {[%clk 0:02:30]} 15. e4 {[%clk 0:01:50]}  Qd8 {[%clk 0:02:15]} 16. e5 {[%clk 0:01:43]}  Nd7 {[%clk 0:02:13]} 17. f4 {[%clk 0:01:43]}  Bf5 {[%clk 0:02:10]} 18. g4 {[%clk 0:01:39]}  Bd3 {[%clk 0:02:09]} 19. Rf3 {[%clk 0:01:30]}  O-O {[%clk 0:02:07]} 20. f5 {[%clk 0:01:30]}  Qb6 {[%clk 0:01:51]} 21. Rxd3 {[%clk 0:01:21]}  cxd3 {[%clk 0:01:49]} 22. Qxd3 {[%clk 0:01:22]}  Nxe5 {[%clk 0:01:43]} 23. Qg3 {[%clk 0:01:12]}  Nc4 {[%clk 0:01:37]} 24. f6 {[%clk 0:01:07]}  Qxd4+ {[%clk 0:01:35]} 25. Kh1 {[%clk 0:01:05]}  Qxf6 {[%clk 0:01:34]} 26. Rf1 {[%clk 0:01:03]}  Qe5 {[%clk 0:01:32]} 27. Qh4 {[%clk 0:01:01]}  Qg5 {[%clk 0:01:26]} 28. Qg3 {[%clk 0:01:00]}  Nxb2 {[%clk 0:01:19]} 29. h4 {[%clk 0:01:00]}  Qd2 {[%clk 0:01:18]} 30. g5 {[%clk 0:00:58]}  Nc4 {[%clk 0:01:07]} 31. gxh6 {[%clk 0:00:51]}  Qxh6 {[%clk 0:01:05]} 32. Rg1 {[%clk 0:00:45]}  Ne3 {[%clk 0:00:59]} 33. Bf3 {[%clk 0:00:39]}  Nf5 {[%clk 0:00:56]} 34. Qe5 {[%clk 0:00:35]}  Nxh4 {[%clk 0:00:45]} 35. Bh5 {[%clk 0:00:34]}  Ng6 {[%clk 0:00:38]} 36. Qf5 {[%clk 0:00:32]}  Nf4 {[%clk 0:00:34]} 37. Rg5 {[%clk 0:00:32]}  Nxh5 {[%clk 0:00:31]} 38. Rxh5 {[%clk 0:00:33]}  Qg6 {[%clk 0:00:30]} 39. Nxd5 {[%clk 0:00:30]}  Qxf5 {[%clk 0:00:30]} 40. Ne7# {[%clk 0:00:30]} 1-0


[Site "https://www.chess.com"]

[Event "Titled Tuesday Blitz April 19 Late 2022"]
[White "Caruana, Fabiano"]
[Black "Jacobson, Brandon"]
[WhiteFideId "2020009"]
[BlackFideId "30901561"]
[WhiteElo "2744"]
[BlackElo "2362"]
[Result "1-0"]
[Round "09"]
[TimeControl "180+1"]
[Date "2022.04.19"]
[WhiteClock "0:00:11"]
[BlackClock "0:00:09"]

1. d4 {[%clk 0:03:00]}  Nf6 {[%clk 0:02:59]} 2. c4 {[%clk 0:03:01]}  e6 {[%clk 0:02:58]} 3. Nc3 {[%clk 0:03:02]}  d5 {[%clk 0:02:57]} 4. cxd5 {[%clk 0:03:01]}  exd5 {[%clk 0:02:58]} 5. Bg5 {[%clk 0:03:01]}  c6 {[%clk 0:02:59]} 6. e3 {[%clk 0:03:01]}  h6 {[%clk 0:02:59]} 7. Bh4 {[%clk 0:03:00]}  Be7 {[%clk 0:02:59]} 8. Bd3 {[%clk 0:03:00]}  O-O {[%clk 0:03:00]} 9. Nge2 {[%clk 0:03:00]}  Re8 {[%clk 0:03:00]} 10. O-O {[%clk 0:02:58]}  Nbd7 {[%clk 0:03:01]} 11. Qc2 {[%clk 0:02:58]}  Nf8 {[%clk 0:03:01]} 12. Rae1 {[%clk 0:02:57]}  Ne6 {[%clk 0:03:01]} 13. f3 {[%clk 0:02:55]}  b5 {[%clk 0:02:57]} 14. Bf2 {[%clk 0:02:51]}  Bd7 {[%clk 0:02:55]} 15. Ng3 {[%clk 0:02:50]}  Rc8 {[%clk 0:02:48]} 16. Qd2 {[%clk 0:02:34]}  b4 {[%clk 0:02:44]} 17. Nce2 {[%clk 0:02:34]}  c5 {[%clk 0:02:42]} 18. dxc5 {[%clk 0:02:26]}  Bxc5 {[%clk 0:02:43]} 19. Nf5 {[%clk 0:02:21]}  Qb6 {[%clk 0:02:35]} 20. Rc1 {[%clk 0:02:14]}  Bb5 {[%clk 0:02:22]} 21. Bxb5 {[%clk 0:02:05]}  Qxb5 {[%clk 0:02:23]} 22. Bh4 {[%clk 0:02:03]}  Ng5 {[%clk 0:02:08]} 23. Ned4 {[%clk 0:02:01]}  Qa6 {[%clk 0:02:04]} 24. b3 {[%clk 0:01:59]}  Qb6 {[%clk 0:01:58]} 25. Kh1 {[%clk 0:01:58]}  Bf8 {[%clk 0:01:55]} 26. Bf2 {[%clk 0:01:48]}  Ne6 {[%clk 0:01:53]} 27. Nxe6 {[%clk 0:01:39]}  Qxe6 {[%clk 0:01:47]} 28. Nd4 {[%clk 0:01:39]}  Qb6 {[%clk 0:01:43]} 29. g4 {[%clk 0:01:33]}  g6 {[%clk 0:01:38]} 30. Kg2 {[%clk 0:01:33]}  h5 {[%clk 0:01:36]} 31. h3 {[%clk 0:01:33]}  Bc5 {[%clk 0:01:36]} 32. Bg3 {[%clk 0:01:26]}  Qa6 {[%clk 0:01:16]} 33. Rf2 {[%clk 0:01:10]}  Bf8 {[%clk 0:01:06]} 34. Rxc8 {[%clk 0:01:01]}  Qxc8 {[%clk 0:01:04]} 35. Bf4 {[%clk 0:00:57]}  Bg7 {[%clk 0:00:57]} 36. Qxb4 {[%clk 0:00:53]}  hxg4 {[%clk 0:00:45]} 37. hxg4 {[%clk 0:00:54]}  Nxg4 {[%clk 0:00:45]} 38. fxg4 {[%clk 0:00:48]}  Qxg4+ {[%clk 0:00:46]} 39. Bg3 {[%clk 0:00:29]}  Rxe3 {[%clk 0:00:40]} 40. Qb8+ {[%clk 0:00:28]}  Kh7 {[%clk 0:00:41]} 41. Qf4 {[%clk 0:00:26]}  Rxg3+ {[%clk 0:00:18]} 42. Qxg3 {[%clk 0:00:26]}  Qxd4 {[%clk 0:00:19]} 43. Rxf7 {[%clk 0:00:26]}  Qe4+ {[%clk 0:00:19]} 44. Qf3 {[%clk 0:00:20]}  Qc2+ {[%clk 0:00:18]} 45. Kh3 {[%clk 0:00:20]}  Qxa2 {[%clk 0:00:12]} 46. Qxd5 {[%clk 0:00:15]}  Qe2 {[%clk 0:00:09]} 47. Qf3 {[%clk 0:00:14]}  Qe6+ {[%clk 0:00:09]} 48. Kg2 {[%clk 0:00:15]}  a5 {[%clk 0:00:09]} 49. Rb7 {[%clk 0:00:15]}  Qe5 {[%clk 0:00:06]} 50. Rd7 {[%clk 0:00:08]}  g5 {[%clk 0:00:06]} 51. Qd3+ {[%clk 0:00:06]}  Kh6 {[%clk 0:00:02]} 52. Qd6+ {[%clk 0:00:06]}  Qxd6 {[%clk 0:00:02]} 53. Rxd6+ {[%clk 0:00:07]}  Kh5 {[%clk 0:00:03]} 54. Rc6 {[%clk 0:00:07]}  Bf8 {[%clk 0:00:03]} 55. Kf3 {[%clk 0:00:06]}  Bb4 {[%clk 0:00:04]} 56. Rc4 {[%clk 0:00:06]}  Bd2 {[%clk 0:00:03]} 57. Rd4 {[%clk 0:00:06]}  Bb4 {[%clk 0:00:04]} 58. Rd8 {[%clk 0:00:06]}  Bc3 {[%clk 0:00:04]} 59. Rc8 {[%clk 0:00:06]}  Bb4 {[%clk 0:00:04]} 60. Rh8+ {[%clk 0:00:05]}  Kg6 {[%clk 0:00:04]} 61. Kg4 {[%clk 0:00:06]}  Bd2 {[%clk 0:00:05]} 62. Rd8 {[%clk 0:00:06]}  Be3 {[%clk 0:00:04]} 63. Rd5 {[%clk 0:00:07]}  Bb6 {[%clk 0:00:04]} 64. Rxg5+ {[%clk 0:00:07]}  Kf6 {[%clk 0:00:04]} 65. Rb5 {[%clk 0:00:08]}  Bd8 {[%clk 0:00:05]} 66. Kf4 {[%clk 0:00:08]}  Ke6 {[%clk 0:00:05]} 67. Ke4 {[%clk 0:00:09]}  Kd6 {[%clk 0:00:06]} 68. Kd4 {[%clk 0:00:09]}  Kc6 {[%clk 0:00:07]} 69. Kc4 {[%clk 0:00:10]}  Bc7 {[%clk 0:00:08]} 70. Rc5+ {[%clk 0:00:10]}  Kb6 {[%clk 0:00:08]} 71. Rh5 {[%clk 0:00:11]}  Kc6 {[%clk 0:00:08]} 72. Rh6+ {[%clk 0:00:11]}  Bd6 {[%clk 0:00:08]} 73. Rg6 {[%clk 0:00:11]}  Kc7 {[%clk 0:00:08]} 74. Kb5 {[%clk 0:00:12]}  Bb4 {[%clk 0:00:09]} 75. Rg7+ {[%clk 0:00:11]}  Kd6 {[%clk 0:00:09]} 76. Rg4 {[%clk 0:00:11]}  Kc7 {[%clk 0:00:09]} 77. Rg7+ {[%clk 0:00:11]}  Kd6 {[%clk 0:00:10]} 78. Rb7 {[%clk 0:00:12]}  Bd2 {[%clk 0:00:09]} 79. Ra7 {[%clk 0:00:11]} 1-0


[Site "https://www.chess.com"]

[Event "Titled Tuesday Blitz April 19 Late 2022"]
[White "Dubov, Daniil"]
[Black "Holt, Conrad"]
[WhiteFideId "24126055"]
[BlackFideId "2034387"]
[WhiteElo "2791"]
[BlackElo "2586"]
[Result "1-0"]
[Round "09"]
[TimeControl "180+1"]
[Date "2022.04.19"]
[WhiteClock "0:00:05"]
[BlackClock "0:00:02"]

1. e4 {[%clk 0:02:58]}  e6 {[%clk 0:03:00]} 2. d4 {[%clk 0:02:57]}  d5 {[%clk 0:02:59]} 3. e5 {[%clk 0:02:58]}  c5 {[%clk 0:02:59]} 4. c3 {[%clk 0:02:58]}  Nc6 {[%clk 0:02:59]} 5. Nf3 {[%clk 0:02:59]}  Bd7 {[%clk 0:02:59]} 6. Na3 {[%clk 0:02:58]}  f6 {[%clk 0:02:50]} 7. Nc2 {[%clk 0:02:57]}  fxe5 {[%clk 0:02:48]} 8. Nxe5 {[%clk 0:02:57]}  Nxe5 {[%clk 0:02:47]} 9. dxe5 {[%clk 0:02:58]}  Qc7 {[%clk 0:02:48]} 10. Be2 {[%clk 0:02:57]}  O-O-O {[%clk 0:02:44]} 11. O-O {[%clk 0:02:58]}  Qxe5 {[%clk 0:02:44]} 12. b4 {[%clk 0:02:55]}  Nf6 {[%clk 0:02:36]} 13. Bf3 {[%clk 0:02:50]}  Qc7 {[%clk 0:02:24]} 14. bxc5 {[%clk 0:02:45]}  Bxc5 {[%clk 0:02:23]} 15. Be3 {[%clk 0:02:45]}  e5 {[%clk 0:02:21]} 16. Rb1 {[%clk 0:02:44]}  Bf5 {[%clk 0:02:13]} 17. Re1 {[%clk 0:02:44]}  Bxe3 {[%clk 0:02:10]} 18. Rxe3 {[%clk 0:02:43]}  h5 {[%clk 0:02:03]} 19. h3 {[%clk 0:02:41]}  g5 {[%clk 0:01:58]} 20. Be2 {[%clk 0:02:35]}  d4 {[%clk 0:01:55]} 21. cxd4 {[%clk 0:02:34]}  Bxc2 {[%clk 0:01:54]} 22. Qe1 {[%clk 0:02:32]}  Nd5 {[%clk 0:01:38]} 23. Rxe5 {[%clk 0:02:15]}  Bxb1 {[%clk 0:01:37]} 24. Qxb1 {[%clk 0:02:16]}  Nc3 {[%clk 0:01:36]} 25. Qf5+ {[%clk 0:02:14]}  Kb8 {[%clk 0:01:34]} 26. Bf3 {[%clk 0:02:12]}  Rhf8 {[%clk 0:01:17]} 27. Qxg5 {[%clk 0:02:10]}  Rxf3 {[%clk 0:01:12]} 28. gxf3 {[%clk 0:02:11]}  b6 {[%clk 0:01:02]} 29. Re7 {[%clk 0:02:01]}  Qd6 {[%clk 0:00:52]} 30. Re3 {[%clk 0:01:55]}  Nd5 {[%clk 0:00:49]} 31. Re5 {[%clk 0:01:55]}  Nf6 {[%clk 0:00:43]} 32. Kh1 {[%clk 0:01:44]}  Rg8 {[%clk 0:00:40]} 33. Qf4 {[%clk 0:01:41]}  Qc7 {[%clk 0:00:26]} 34. Kh2 {[%clk 0:01:35]}  Rf8 {[%clk 0:00:20]} 35. Qh6 {[%clk 0:01:26]}  Nd7 {[%clk 0:00:18]} 36. f4 {[%clk 0:01:27]}  Kb7 {[%clk 0:00:09]} 37. Re4 {[%clk 0:01:16]}  Rf6 {[%clk 0:00:07]} 38. Qg5 {[%clk 0:01:10]}  Qd6 {[%clk 0:00:06]} 39. Kh1 {[%clk 0:01:01]}  a5 {[%clk 0:00:07]} 40. d5 {[%clk 0:00:58]}  Rf7 {[%clk 0:00:05]} 41. Re6 {[%clk 0:00:46]}  Qxf4 {[%clk 0:00:03]} 42. Qxf4 {[%clk 0:00:31]}  Rxf4 {[%clk 0:00:04]} 43. Kg2 {[%clk 0:00:32]}  h4 {[%clk 0:00:05]} 44. Rd6 {[%clk 0:00:29]}  Kc7 {[%clk 0:00:05]} 45. Rc6+ {[%clk 0:00:29]}  Kd8 {[%clk 0:00:06]} 46. Rd6 {[%clk 0:00:30]}  Rd4 {[%clk 0:00:06]} 47. Kf3 {[%clk 0:00:29]}  Ke7 {[%clk 0:00:06]} 48. Re6+ {[%clk 0:00:29]}  Kf7 {[%clk 0:00:06]} 49. Rd6 {[%clk 0:00:28]}  Ne5+ {[%clk 0:00:05]} 50. Ke2 {[%clk 0:00:21]}  Nc4 {[%clk 0:00:05]} 51. Rh6 {[%clk 0:00:20]}  Kg7 {[%clk 0:00:05]} 52. Rh5 {[%clk 0:00:19]}  Kg6 {[%clk 0:00:04]} 53. Rh8 {[%clk 0:00:20]}  Kf5 {[%clk 0:00:05]} 54. Rh5+ {[%clk 0:00:17]}  Kf6 {[%clk 0:00:04]} 55. Kf3 {[%clk 0:00:15]}  Ke7 {[%clk 0:00:04]} 56. Rh6 {[%clk 0:00:13]}  Kd7 {[%clk 0:00:04]} 57. Ke2 {[%clk 0:00:12]}  a4 {[%clk 0:00:05]} 58. Kf3 {[%clk 0:00:07]}  b5 {[%clk 0:00:05]} 59. Ra6 {[%clk 0:00:07]}  Kc7 {[%clk 0:00:05]} 60. Rc6+ {[%clk 0:00:06]}  Kd7 {[%clk 0:00:05]} 61. Ra6 {[%clk 0:00:06]}  Nd6 {[%clk 0:00:05]} 62. Ke3 {[%clk 0:00:06]}  Rxd5 {[%clk 0:00:05]} 63. f4 {[%clk 0:00:06]}  Kc7 {[%clk 0:00:04]} 64. Kf3 {[%clk 0:00:06]}  Rd4 {[%clk 0:00:03]} 65. Kg4 {[%clk 0:00:06]}  b4 {[%clk 0:00:03]} 66. Rxa4 {[%clk 0:00:05]}  Kb6 {[%clk 0:00:03]} 67. Kg5 {[%clk 0:00:05]}  Kb5 {[%clk 0:00:04]} 68. Ra8 {[%clk 0:00:05]}  Ne4+ {[%clk 0:00:04]} 69. Kxh4 {[%clk 0:00:05]}  Nc3 {[%clk 0:00:05]} 70. Kg5 {[%clk 0:00:05]}  Rd2 {[%clk 0:00:05]} 71. f5 {[%clk 0:00:05]}  Rg2+ {[%clk 0:00:05]} 72. Kh5 {[%clk 0:00:05]}  Rf2 {[%clk 0:00:06]} 73. Kg6 {[%clk 0:00:05]}  Nxa2 {[%clk 0:00:07]} 74. f6 {[%clk 0:00:05]}  b3 {[%clk 0:00:07]} 75. f7 {[%clk 0:00:05]}  Nb4 {[%clk 0:00:06]} 76. f8=Q {[%clk 0:00:04]}  Rxf8 {[%clk 0:00:06]} 77. Rxf8 {[%clk 0:00:05]}  Nd3 {[%clk 0:00:04]} 78. Rf1 {[%clk 0:00:05]}  b2 {[%clk 0:00:04]} 79. Rb1 {[%clk 0:00:04]}  Kc4 {[%clk 0:00:05]} 80. h4 {[%clk 0:00:04]}  Kc3 {[%clk 0:00:05]} 81. Kf5 {[%clk 0:00:04]}  Nb4 {[%clk 0:00:04]} 82. h5 {[%clk 0:00:04]}  Nc6 {[%clk 0:00:02]} 83. h6 {[%clk 0:00:03]}  Ne7+ {[%clk 0:00:03]} 84. Kg5 {[%clk 0:00:04]}  Nc8 {[%clk 0:00:02]} 85. Rxb2 {[%clk 0:00:04]}  Kxb2 {[%clk 0:00:02]} 86. h7 {[%clk 0:00:05]}  Nd6 {[%clk 0:00:02]} 87. h8=Q+ {[%clk 0:00:05]} 1-0


[Site "https://www.chess.com"]

[Event "Titled Tuesday Blitz April 19 Late 2022"]
[White "Fernandez Hernandez, Gerardo"]
[Black "Kanyamarala, Trisha"]
[WhiteFideId "2207400"]
[BlackFideId "45004722"]
[WhiteElo "2171"]
[BlackElo "2079"]
[Result "0-1"]
[Round "09"]
[TimeControl "180+1"]
[Date "2022.04.19"]
[WhiteClock "0:00:03"]
[BlackClock "0:00:29"]

1. e4 {[%clk 0:03:00]}  c5 {[%clk 0:02:59]} 2. d3 {[%clk 0:03:00]}  d6 {[%clk 0:02:58]} 3. g3 {[%clk 0:03:01]}  Nc6 {[%clk 0:02:58]} 4. Bg2 {[%clk 0:03:01]}  g6 {[%clk 0:02:58]} 5. f4 {[%clk 0:03:01]}  Bg7 {[%clk 0:02:59]} 6. Nf3 {[%clk 0:03:01]}  Nf6 {[%clk 0:02:59]} 7. O-O {[%clk 0:03:00]}  O-O {[%clk 0:03:00]} 8. h3 {[%clk 0:03:01]}  Rb8 {[%clk 0:03:00]} 9. g4 {[%clk 0:02:58]}  b5 {[%clk 0:03:01]} 10. f5 {[%clk 0:02:56]}  Qb6 {[%clk 0:02:58]} 11. Kh1 {[%clk 0:02:49]}  Nd7 {[%clk 0:02:52]} 12. g5 {[%clk 0:02:42]}  a5 {[%clk 0:02:47]} 13. Nc3 {[%clk 0:02:40]}  Nd4 {[%clk 0:02:44]} 14. Nd5 {[%clk 0:02:36]}  Qd8 {[%clk 0:02:43]} 15. Nh4 {[%clk 0:02:34]}  Bb7 {[%clk 0:02:41]} 16. c3 {[%clk 0:02:26]}  Nc6 {[%clk 0:02:35]} 17. Be3 {[%clk 0:01:44]}  Nce5 {[%clk 0:02:26]} 18. Qe2 {[%clk 0:01:32]}  Re8 {[%clk 0:02:03]} 19. Rae1 {[%clk 0:01:24]}  e6 {[%clk 0:02:00]} 20. fxe6 {[%clk 0:01:19]}  fxe6 {[%clk 0:02:00]} 21. Nf4 {[%clk 0:01:09]}  Ba6 {[%clk 0:01:54]} 22. d4 {[%clk 0:00:45]}  Nc4 {[%clk 0:01:52]} 23. Qg4 {[%clk 0:00:33]}  Qe7 {[%clk 0:01:38]} 24. Bc1 {[%clk 0:00:21]}  cxd4 {[%clk 0:01:35]} 25. cxd4 {[%clk 0:00:14]}  Bxd4 {[%clk 0:01:34]} 26. Nfxg6 {[%clk 0:00:10]}  hxg6 {[%clk 0:01:34]} 27. Nxg6 {[%clk 0:00:10]}  Qg7 {[%clk 0:01:34]} 28. Nf4 {[%clk 0:00:07]}  Nc5 {[%clk 0:01:29]} 29. h4 {[%clk 0:00:06]}  Ne5 {[%clk 0:01:25]} 30. Qg3 {[%clk 0:00:05]}  Ned7 {[%clk 0:01:24]} 31. Qg4 {[%clk 0:00:04]}  b4 {[%clk 0:01:22]} 32. Nh5 {[%clk 0:00:03]}  Qg6 {[%clk 0:01:18]} 33. Rf3 {[%clk 0:00:02]}  Ne5 {[%clk 0:01:03]} 34. Nf6+ {[%clk 0:00:01]}  Qxf6 {[%clk 0:00:39]} 35. gxf6+ {[%clk 0:00:02]}  Nxg4 {[%clk 0:00:39]} 36. f7+ {[%clk 0:00:03]}  Kh7 {[%clk 0:00:34]} 37. fxe8=Q {[%clk 0:00:04]}  Rxe8 {[%clk 0:00:33]} 38. Rf7+ {[%clk 0:00:04]}  Kg6 {[%clk 0:00:33]} 39. Bf3 {[%clk 0:00:04]}  Nf2+ {[%clk 0:00:31]} 40. Kg2 {[%clk 0:00:03]}  Kxf7 {[%clk 0:00:32]} 41. Bh5+ {[%clk 0:00:04]}  Ke7 {[%clk 0:00:29]} 42. Bg5+ {[%clk 0:00:04]}  Kd7 {[%clk 0:00:28]} 43. Bxe8+ {[%clk 0:00:03]}  Kxe8 {[%clk 0:00:29]} 0-1


[Site "https://www.chess.com"]

[Event "Titled Tuesday Blitz April 19 Late 2022"]
[White "Gledura, Benjamin"]
[Black "Andreikin, Dmitry"]
[WhiteFideId "712779"]
[BlackFideId "4158814"]
[WhiteElo "2326"]
[BlackElo "2736"]
[Result "0-1"]
[Round "09"]
[TimeControl "180+1"]
[Date "2022.04.19"]
[WhiteClock "0:00:46"]
[BlackClock "0:01:19"]

1. Nf3 {[%clk 0:03:00]}  d5 {[%clk 0:02:59]} 2. g3 {[%clk 0:03:00]}  Nf6 {[%clk 0:02:59]} 3. Bg2 {[%clk 0:03:01]}  Bg4 {[%clk 0:02:59]} 4. O-O {[%clk 0:03:00]}  e6 {[%clk 0:02:59]} 5. h3 {[%clk 0:03:00]}  Bh5 {[%clk 0:02:59]} 6. c4 {[%clk 0:03:00]}  c6 {[%clk 0:02:59]} 7. d4 {[%clk 0:03:00]}  Be7 {[%clk 0:02:55]} 8. Qb3 {[%clk 0:02:52]}  Qb6 {[%clk 0:02:52]} 9. Nc3 {[%clk 0:02:51]}  O-O {[%clk 0:02:49]} 10. Bd2 {[%clk 0:02:38]}  Nbd7 {[%clk 0:02:46]} 11. e3 {[%clk 0:02:34]}  Bg6 {[%clk 0:02:44]} 12. Rfc1 {[%clk 0:02:28]}  dxc4 {[%clk 0:02:40]} 13. Qxc4 {[%clk 0:02:27]}  Qxb2 {[%clk 0:02:40]} 14. Nh4 {[%clk 0:01:57]}  Qxd2 {[%clk 0:02:34]} 15. Nxg6 {[%clk 0:01:56]}  hxg6 {[%clk 0:02:33]} 16. Rab1 {[%clk 0:01:41]}  Nb6 {[%clk 0:02:23]} 17. Qb3 {[%clk 0:01:40]}  Qd3 {[%clk 0:01:44]} 18. Nd5 {[%clk 0:01:00]}  Qxb3 {[%clk 0:01:44]} 19. Nxe7+ {[%clk 0:01:00]}  Kh7 {[%clk 0:01:44]} 20. Rxb3 {[%clk 0:01:01]}  Rae8 {[%clk 0:01:40]} 21. Nxc6 {[%clk 0:01:01]}  bxc6 {[%clk 0:01:40]} 22. Rxc6 {[%clk 0:01:01]}  Rc8 {[%clk 0:01:35]} 23. Rc5 {[%clk 0:01:00]}  Nfd7 {[%clk 0:01:29]} 24. Ra5 {[%clk 0:01:00]}  Rc7 {[%clk 0:01:29]} 25. Bf3 {[%clk 0:00:55]}  Rfc8 {[%clk 0:01:27]} 26. Kg2 {[%clk 0:00:53]}  Nc4 {[%clk 0:01:26]} 27. Ra6 {[%clk 0:00:50]}  Nd2 {[%clk 0:01:24]} 28. Rba3 {[%clk 0:00:50]}  Nxf3 {[%clk 0:01:24]} 29. Kxf3 {[%clk 0:00:50]}  Ra8 {[%clk 0:01:23]} 30. Rb3 {[%clk 0:00:46]}  Kg8 {[%clk 0:01:22]} 31. a4 {[%clk 0:00:46]}  Kf8 {[%clk 0:01:21]} 32. e4 {[%clk 0:00:46]}  Rb8 {[%clk 0:01:19]} 0-1


[Site "https://www.chess.com"]